bitfinex/quotes_ETHUSD_20250517
["timestamp","ask_amount","ask_price","bid_price","bid_amount"]
[1747443872074,4.01251905,2492.2,2492.1,9.183]
[1747443872248,4.01228989,2492.4,2492.1,9.183]
[1747443872453,17.9562,2492.5,2491.2,6.02]
[1747443872678,1.68535823,2492.4,2491.3,6.02]
[1747443872981,1.68535823,2492.4,2491.4,4.01365996]
[1747443872982,1.63490938,2492.4,2491.4,4.01365996]
[1747443873163,8.7732,2492.5,2491.5,0.04013407]
[1747443873343,8.7732,2492.5,2491.4,0.7878]
[1747443873538,4.01265658,2492.2,2491.5,9.183]
[1747443873746,4.01284109,2492.0,2491.5,9.183]
[1747443873944,4.01310937,2491.9,2491.6,6.02]
[1747443874157,9.212,2492.1,2491.6,6.02]
[1747443874447,4.01332423,2491.7,2491.6,6.02]
[1747443874680,0.7732,2492.5,2491.6,6.02]
[1747443874681,1.3232,2492.5,2491.6,6.02]
[1747443874879,8.0,2492.3,2491.7,6.02]
[1747443875066,13.23810141,2492.5,2491.8,15.205]
[1747443875271,0.7732,2493.2,2491.9,16.3]
[1747443875476,0.3069903,2493.5,2492.4,0.7878]
[1747443875671,4.01054332,2493.5,2492.8,4.01153735]
[1747443875987,4.01080106,2493.3,2492.8,6.02]
[1747443876587,4.00990659,2493.9,2492.8,6.02]
[1747443876588,4.00914084,2494.3,2493.0,4.78273144]
[1747443876760,4.00963041,2494.0,2493.4,4.01058795]
[1747443877081,4.00963041,2494.0,2493.2,4.78233884]
[1747443877249,9.242,2494.1,2493.2,0.7715]
[1747443877452,9.242,2494.1,2493.3,9.186]
[1747443877453,4.01058795,2493.4,2493.3,9.186]
[1747443877669,8.0,2493.7,2493.1,9.186]
[1747443877670,9.248,2493.5,2493.1,9.186]
[1747443877871,9.248,2493.5,2492.6,0.7715]
[1747443877872,9.85967303,2493.5,2492.6,0.7715]
[1747443878177,4.01116082,2493.1,2492.8,9.186]
[1747443878378,4.01111774,2493.1,2492.6,0.7715]
[1747443878584,9.236,2493.3,2492.9,9.186]
[1747443878783,13.24677706,2493.3,2492.9,9.186]
[1747443878960,13.24679825,2493.3,2492.9,9.186]
[1747443879285,13.24679825,2493.3,2492.4,4.01215444]
[1747443879286,0.8216,2493.1,2490.8,6.7915]
[1747443879460,1.3716,2492.6,2490.9,9.186]
[1747443879663,4.01299445,2492.0,2491.3,4.01388071]
[1747443879978,4.01263615,2492.2,2491.6,4.01345249]
[1747443880180,9.327,2492.5,2491.8,4.78456825]
[1747443880370,12.0123273,2492.4,2491.9,14.99838472]
[1747443880568,0.8216,2493.0,2491.9,10.98538417]
[1747443880884,12.01124057,2493.0,2492.5,0.7715]
[1747443881060,13.34812284,2493.1,2492.6,9.187]
[1747443881264,9.332,2493.2,2492.5,0.7715]
[1747443881475,4.01160927,2492.8,2492.5,0.7715]
[1747443881781,4.01128455,2493.0,2492.5,0.7715]
[1747443881983,9.332,2493.2,2492.5,0.7715]
[1747443882150,4.01104944,2493.2,2492.6,4.01180668]
[1747443882350,8.0,2493.2,2492.7,4.0117095]
[1747443883066,4.0109554,2493.2,2492.6,17.32]
[1747443883384,8.0,2493.3,2492.6,17.32]
[1747443883585,9.332,2493.4,2492.7,6.02]
[1747443883794,2.25726822,2493.9,2492.8,6.02]
[1747443884085,8.0,2493.6,2492.9,15.353]
[1747443884487,12.01030473,2493.6,2492.9,15.353]
[1747443884685,4.01105343,2493.2,2492.9,6.02]
[1747443884889,4.01107055,2493.1,2493.0,6.02]
[1747443885277,12.01155327,2492.8,2492.7,6.02]
[1747443885480,8.0,2492.8,2492.2,9.333]
[1747443885690,17.321,2492.7,2492.3,6.02]
[1747443886078,0.776,2493.0,2492.3,6.02]
[1747443886276,4.01213279,2492.5,2492.3,6.02]
[1747443886599,0.8216,2493.3,2492.3,6.02]
[1747443886800,4.01151047,2492.9,2492.4,10.03215108]
[1747443887007,8.0,2493.1,2492.5,6.02]
[1747443887173,12.01107452,2493.1,2492.5,6.02]
[1747443887369,4.01140923,2492.9,2492.5,6.02]
[1747443887574,4.01140923,2492.9,2492.6,9.334]
[1747443887866,4.01155343,2492.8,2492.6,9.334]
[1747443888283,4.01187515,2492.6,2492.5,15.354]
[1747443889086,8.0,2492.9,2492.5,15.354]
[1747443889271,9.288,2492.8,2492.5,15.354]
[1747443889466,9.288,2492.8,2492.5,9.334]
[1747443890104,4.01146115,2492.9,2492.5,9.334]
[1747443890293,4.01211777,2492.5,2491.6,6.02]
[1747443890494,17.326,2492.6,2491.8,0.7672]
[1747443890693,8.0,2493.0,2492.4,4.01211732]
[1747443891003,21.34028114,2493.0,2492.5,13.34594136]
[1747443891204,21.34028114,2493.0,2492.6,9.334]
[1747443891420,0.30373953,2493.2,2492.7,0.04011425]
[1747443891705,0.30373953,2493.2,2492.7,0.7871]
[1747443891876,0.30373953,2493.2,2493.0,4.0111516]
[1747443892073,0.30373953,2493.2,2493.1,13.34507055]
[1747443892281,9.331,2493.6,2493.1,11.06962816]
[1747443892282,4.01042711,2493.5,2493.1,11.06962816]
[1747443892574,4.01124948,2493.0,2492.0,4.01273366]
[1747443892774,4.0120183,2492.6,2491.9,4.01299972]
[1747443892974,4.01212641,2492.5,2492.0,4.01282097]
[1747443893280,4.0121985,2492.4,2491.9,4.01297703]
[1747443895011,13.4028783,2492.6,2491.1,9.335]
[1747443895012,11.1912,2492.3,2491.1,9.335]
[1747443895304,4.01343534,2491.7,2491.1,13.34913291]
[1747443895607,4.01343534,2491.7,2491.1,9.335]
[1747443895784,12.01287695,2492.0,2491.1,9.335]
[1747443896000,4.01262994,2492.2,2491.5,4.01349628]
[1747443896201,13.38475676,2492.1,2491.6,9.73634963]
[1747443896529,21.38117245,2492.5,2492.0,4.01283799]
[1747443896711,4.01238272,2492.3,2492.1,9.335]
[1747443896915,4.01241519,2492.3,2492.1,9.335]
[1747443897427,4.01251905,2492.2,2492.1,9.335]
[1747443897627,4.01241519,2492.3,2492.1,9.335]
[1747443897791,4.01220258,2492.4,2492.1,9.335]
[1747443897991,8.0,2492.5,2492.1,9.335]
[1747443898194,4.01092874,2493.2,2492.1,9.335]
[1747443898195,0.7852,2493.1,2492.1,32.79346168]
[1747443898430,9.354,2493.0,2492.3,4.01224156]
[1747443898734,4.0111396,2493.1,2492.4,0.04011808]
[1747443898896,4.0111396,2493.1,2492.2,0.55]
[1747443898897,4.01091042,2493.2,2492.3,0.7871]
[1747443899225,4.01090809,2493.3,2492.6,4.01173254]
[1747443899428,4.01092408,2493.2,2492.7,9.335]
[1747443899628,4.01114938,2493.1,2492.7,9.335]
[1747443900235,4.01155327,2492.8,2492.7,9.335]
[1747443900532,4.01139235,2492.9,2492.7,15.355]
[1747443900728,4.01155327,2492.8,2492.7,6.02]
[1747443901227,4.0107488,2493.3,2492.7,6.02]
[1747443901426,13.33636262,2493.0,2492.8,6.02]
[1747443901734,4.01139235,2492.9,2492.8,6.02]
[1747443902597,12.01139235,2492.9,2492.8,6.02]
[1747443903399,12.01139235,2492.9,2492.4,6.02]
[1747443903400,4.0120361,2492.5,2492.4,6.02]
[1747443903598,4.0120361,2492.5,2492.3,6.02]
[1747443904002,4.01193334,2492.6,2492.3,6.02]
[1747443904507,12.011512,2492.9,2492.3,13.18181559]
[1747443904835,4.01156133,2492.8,2492.3,13.18181559]
[1747443905050,8.0,2492.9,2492.4,4.01218938]
[1747443905051,12.01146994,2492.9,2492.4,4.01218938]
[1747443905340,4.01157985,2492.8,2492.3,13.18184178]
[1747443905851,8.0,2492.9,2492.3,9.16953325]
[1747443906024,4.01188029,2492.6,2492.4,9.335]
[1747443906424,8.0,2492.9,2492.4,9.335]
[1747443906745,12.01143139,2492.9,2492.4,9.335]
[1747443906950,12.01142746,2492.9,2492.4,9.335]
[1747443907246,12.01142995,2492.9,2492.4,13.34716398]
[1747443907445,4.01156335,2492.8,2492.4,9.335]
[1747443907935,12.01147332,2492.9,2492.5,6.02]
[1747443908326,4.01160535,2492.8,2492.5,6.02]
[1747443908959,3.74457262,2492.8,2492.5,6.02]
[1747443909158,4.01187515,2492.6,2492.5,6.02]
[1747443909362,21.27287515,2492.6,2492.5,6.02]
[1747443910695,4.01251905,2492.2,2492.1,23.344]
[1747443910991,17.261,2492.6,2492.1,17.324]
[1747443911146,4.01251905,2492.2,2492.1,17.324]
[1747443911553,4.01251905,2492.2,2492.1,26.56]
[1747443912379,12.01244687,2492.3,2492.1,26.56]
[1747443912555,4.01251905,2492.2,2492.1,17.324]
[1747443912885,9.221,2492.4,2492.1,17.324]
[1747443913088,13.23323022,2492.4,2492.1,17.324]
[1747443913240,13.23323143,2492.4,2492.1,17.324]
[1747443913440,13.23325617,2492.4,2492.1,17.324]
[1747443913640,4.01226178,2492.4,2492.1,17.324]
[1747443913897,0.7974,2493.2,2492.4,4.01216235]
[1747443914189,1.99651703,2493.3,2493.0,4.01120138]
[1747443914401,1.99651703,2493.3,2493.1,15.257]
[1747443914692,1.99651703,2493.4,2493.3,4.0107488]
[1747443915065,1.99651703,2493.4,2493.2,0.7785]
[1747443915392,1.99651703,2493.4,2493.3,9.237]
[1747443915944,1.99651703,2493.4,2493.3,15.36125308]
[1747443916144,2.49475176,2494.1,2493.8,4.00987494]
[1747443916348,2.49475176,2494.1,2494.0,4.79832309]
[1747443916548,2.49475176,2494.1,2494.0,14.03332309]
[1747443916963,2.49475176,2494.1,2494.0,10.0237]
[1747443917644,1.99831212,2494.7,2494.0,10.0237]
[1747443917844,1.99831212,2494.7,2494.2,4.00919737]
[1747443918082,4.00875715,2494.6,2494.0,16.76792895]
[1747443918583,4.00904445,2494.4,2494.1,9.235]
[1747443918882,6.00682917,2494.7,2494.1,13.2443554]
[1747443919449,4.00866602,2494.6,2494.1,13.2443554]
[1747443919649,6.00683963,2494.7,2494.2,4.0092303]
[1747443919881,4.0087767,2494.6,2494.1,9.235]
[1747443920083,6.00689428,2494.7,2494.1,13.24436219]
[1747443920378,4.00866074,2494.6,2494.1,13.24436219]
[1747443920888,4.00910544,2494.4,2494.1,9.235]
[1747443921667,4.00853624,2494.7,2494.1,13.24438105]
[1747443921866,4.00841278,2494.8,2494.2,4.00928876]
[1747443922090,8.0,2494.8,2494.3,4.00905122]
[1747443922598,0.7952,2495.7,2494.5,0.7887]
[1747443922903,4.00755832,2495.3,2494.7,4.00849801]
[1747443923071,8.0,2495.6,2494.6,15.252]
[1747443923072,8.0,2495.6,2494.8,17.316]
[1747443923271,8.50211829,2495.6,2494.8,17.316]
[1747443923593,4.00817668,2494.9,2494.8,17.316]
[1747443923799,4.00817668,2494.9,2494.2,6.02]
[1747443923800,4.00914084,2494.3,2494.2,6.02]
[1747443924000,4.00914084,2494.3,2493.9,6.02]
[1747443924001,4.00962309,2494.0,2493.9,6.02]
[1747443925380,8.0,2494.2,2493.9,6.02]
[1747443925557,13.95676444,2494.7,2493.9,7.5452]
[1747443925767,9.153,2494.7,2494.3,4.00906334]
[1747443925980,9.153,2494.7,2494.3,13.24106334]
[1747443926193,13.16151869,2494.7,2494.3,9.232]
[1747443926407,4.00876315,2494.6,2494.3,9.232]
[1747443927113,4.00876315,2494.6,2494.0,0.7887]
[1747443927114,8.61167303,2494.6,2494.0,0.7887]
[1747443927282,4.00941254,2494.2,2493.9,6.02]
[1747443927480,9.167,2494.3,2493.9,10.02966917]
[1747443927822,12.00876611,2494.6,2494.0,4.00950324]
[1747443928018,12.00876611,2494.6,2493.9,6.02]
[1747443928019,8.0,2494.6,2493.9,6.02]
[1747443928173,8.0,2494.6,2493.9,7.19425307]
[1747443928374,12.0087488,2494.6,2494.0,4.00962309]
[1747443928568,12.00844908,2494.8,2494.2,4.81822112]
[1747443928795,8.0,2494.6,2494.3,15.251]
[1747443928993,17.156,2494.9,2494.3,6.02]
[1747443929196,4.00898011,2494.4,2494.3,6.02]
[1747443929694,13.19498011,2494.4,2494.3,6.02]
[1747443929891,21.99778011,2494.4,2494.3,6.02]
[1747443930094,4.00946233,2494.1,2494.0,6.02]
[1747443934825,4.00946233,2494.1,2493.2,17.316]
[1747443934826,4.01010546,2493.7,2493.6,6.02]
[1747443935180,13.13610546,2493.7,2493.6,6.02]
[1747443935404,21.13610546,2493.7,2493.6,6.02]
[1747443935912,4.01058795,2493.4,2493.3,6.02]
[1747443936111,12.77315042,2493.8,2493.0,9.232]
[1747443936112,4.01006658,2493.8,2493.1,0.7888]
[1747443936313,12.01012462,2493.7,2493.2,4.01080975]
[1747443936615,12.01012462,2493.7,2493.3,0.47996098]
[1747443937016,12.01012462,2493.7,2493.1,4.79978701]
[1747443937017,4.01082668,2493.3,2493.1,0.7888]
[1747443937215,4.01090967,2493.2,2493.1,0.7888]
[1747443937395,4.01090967,2493.2,2493.1,6.02]
[1747443937590,12.01090967,2493.2,2493.1,6.02]
[1747443938941,12.01155327,2492.8,2492.7,6.02]
[1747443939089,8.0,2492.7,2491.8,17.316]
[1747443939438,4.01298475,2492.0,2491.8,17.316]
[1747443939727,9.133,2492.3,2491.8,17.316]
[1747443939900,13.14539526,2492.3,2491.8,17.316]
[1747443940241,4.01268006,2492.1,2491.4,9.232]
[1747443940448,13.13978948,2492.1,2491.6,0.7888]
[1747443940610,4.01302241,2491.9,2491.6,0.7888]
[1747443940806,4.01332423,2491.7,2491.6,0.7888]
[1747443941125,4.01332423,2491.7,2491.2,0.8265]
[1747443941327,4.01357133,2491.6,2491.4,9.234]
[1747443941524,4.01364639,2491.5,2491.4,9.234]
[1747443942511,8.0,2491.5,2491.0,26.447]
[1747443942694,13.13550302,2491.6,2490.9,0.8265]
[1747443942695,4.01408235,2491.3,2490.9,0.8265]
[1747443942901,4.01414122,2491.2,2490.9,0.8265]
[1747443943100,8.0,2491.5,2490.9,0.8265]
[1747443943327,12.01383379,2491.4,2490.9,4.84102457]
[1747443943647,9.106,2491.8,2491.4,4.01372649]
[1747443943815,4.01261425,2492.2,2491.6,4.01340239]
[1747443944133,4.01261425,2492.2,2491.7,9.133]
[1747443944294,13.12440307,2492.3,2491.7,10.93164384]
[1747443944500,4.01263546,2492.2,2491.7,10.93164384]
[1747443945127,9.112,2492.3,2491.5,0.8265]
[1747443945411,4.01293984,2492.0,2491.5,9.9595]
[1747443945811,13.13260195,2492.2,2491.5,13.97308644]
[1747443946000,13.13260195,2492.2,2491.6,4.01348531]
[1747443946236,4.0122904,2492.4,2491.5,9.9595]
[1747443946433,4.79655938,2492.8,2491.8,4.01316317]
[1747443946628,0.7849,2493.2,2492.6,4.01187032]
[1747443946834,0.7849,2493.6,2492.7,0.8265]
[1747443947034,9.137,2493.5,2492.7,0.8265]
[1747443947230,4.01059099,2493.4,2492.8,4.01140173]
[1747443947453,4.01059099,2493.4,2492.3,4.01222283]
[1747443947454,4.01155327,2492.8,2492.3,4.01226294]
[1747443947668,4.0115843,2492.8,2492.6,9.134]
[1747443947841,4.0117142,2492.7,2492.6,9.134]
[1747443948164,4.0117142,2492.7,2492.4,9.9605]
[1747443948469,4.01199725,2492.6,2492.1,0.8265]
[1747443948644,4.01199725,2492.6,2492.3,9.134]
[1747443948843,8.0,2492.7,2491.9,17.325]
[1747443949051,4.01236377,2492.3,2491.9,17.325]
[1747443949257,4.01252338,2492.2,2491.9,17.325]
[1747443949446,13.15236337,2492.3,2491.9,17.325]
[1747443949653,9.14,2492.3,2491.7,9.134]
[1747443950048,13.15237312,2492.3,2491.7,9.134]
[1747443950373,4.01164375,2492.8,2491.7,9.134]
[1747443950666,9.146,2492.7,2491.8,0.8265]
[1747443950965,9.146,2492.7,2491.5,4.56352691]
[1747443950966,4.01258107,2492.2,2491.6,9.134]
[1747443951169,9.147,2492.1,2491.6,9.134]
[1747443951467,4.01302612,2491.9,2491.6,9.134]
[1747443951666,0.8086,2491.9,2490.9,0.48413486]
[1747443951854,8.0,2491.4,2490.7,9.8974]
[1747443952059,4.01398436,2491.3,2490.8,4.01468871]
[1747443952256,9.17,2491.4,2490.7,9.8974]
[1747443952444,8.0,2491.3,2490.7,9.89136363]
[1747443952644,8.0,2491.4,2490.9,4.01461034]
[1747443952848,9.179,2491.9,2490.9,5.80667388]
[1747443953171,9.179,2491.9,2491.3,4.01394829]
[1747443953336,13.19202915,2491.9,2491.4,13.14870076]
[1747443953537,13.18890787,2492.0,2491.5,9.135]
[1747443953871,4.01305501,2491.9,2491.5,9.135]
[1747443954070,4.01355033,2491.6,2491.2,9.135]
[1747443954363,9.171,2492.0,2491.4,4.01380749]
[1747443954364,8.0,2492.0,2491.4,4.01380749]
[1747443954565,8.0,2492.0,2491.3,4.01396861]
[1747443954769,8.0,2492.0,2491.3,4.01389414]
[1747443954948,12.01290959,2492.0,2491.4,13.14880415]
[1747443955533,8.0,2492.1,2491.4,15.66983651]
[1747443955854,4.01180312,2492.7,2492.1,4.01255778]
[1747443956054,13.17882634,2492.7,2492.1,13.14763212]
[1747443956262,13.17882634,2492.7,2492.2,4.01250942]
[1747443956968,4.01182634,2492.7,2492.1,13.90290625]
[1747443957170,13.17482634,2492.7,2492.1,13.90290625]
[1747443957382,9.176,2493.0,2492.1,11.68187086]
[1747443957579,9.175,2493.1,2492.7,4.0116645]
[1747443957868,4.01148848,2492.9,2492.6,9.135]
[1747443958436,9.175,2493.1,2492.6,9.135]
[1747443958636,0.8258,2493.4,2492.7,4.01157485]
[1747443958861,4.01092779,2493.2,2492.7,4.01158837]
[1747443959064,0.57190999,2493.6,2492.6,9.135]
[1747443959239,4.01166937,2492.8,2492.2,4.01243278]
[1747443959442,9.179,2493.0,2492.4,4.01219707]
[1747443959660,8.0,2493.3,2492.4,5.32688231]
[1747443959848,9.175,2493.0,2492.5,4.0120361]
[1747443960051,4.01094004,2493.2,2492.5,4.0120233]
[1747443960243,9.169,2493.2,2492.4,1.31471971]
[1747443960438,9.173,2493.2,2492.7,4.01171234]
[1747443960638,9.17,2493.3,2492.8,9.8903]
[1747443960873,4.01092752,2493.2,2492.8,9.8903]
[1747443961479,4.0113684,2493.0,2492.5,4.8223339]
[1747443961789,9.17,2493.3,2492.5,4.8223339]
[1747443961790,4.01080723,2493.3,2492.7,4.01157421]
[1747443961944,9.17,2493.2,2492.5,0.8103]
[1747443962290,9.17,2493.2,2492.8,4.01146828]
[1747443962504,9.17,2493.2,2492.9,9.134]
[1747443962817,0.8258,2493.7,2492.9,9.134]
[1747443963087,9.166,2494.1,2493.6,4.01015302]
[1747443963296,2.66624142,2494.3,2493.7,9.134]
[1747443963478,2.66624142,2494.3,2493.8,9.98439444]
[1747443963677,2.66624142,2494.3,2493.9,9.134]
[1747443964186,4.00962309,2494.0,2493.9,9.134]
[1747443964385,13.17762309,2494.0,2493.9,9.134]
[1747443964563,4.01021849,2493.7,2493.5,9.132]
[1747443964763,17.168,2494.0,2493.6,4.01025947]
[1747443964961,8.0,2494.0,2493.6,4.01025947]
[1747443965274,2.66624142,2494.3,2494.1,4.00938942]
[1747443965462,2.66624142,2494.3,2494.2,6.02]
[1747443965863,4.00894328,2494.5,2494.2,6.02]
[1747443966791,4.00914084,2494.3,2494.2,6.02]
[1747443966965,12.83674084,2494.3,2494.2,6.02]
[1747443967577,4.00978387,2493.9,2493.8,6.02]
[1747443967785,4.01026628,2493.6,2493.5,6.02]
[1747443967989,4.01047676,2493.5,2493.1,6.02]
[1747443968193,4.83786093,2493.7,2493.1,19.16206761]
[1747443968365,0.8276,2494.0,2493.1,15.151]
[1747443968571,8.0,2494.1,2493.3,0.8006]
[1747443968791,4.00994557,2493.8,2493.4,6.02]
[1747443969012,8.0,2494.1,2493.4,6.02]
[1747443969013,4.01012412,2493.7,2493.4,6.02]
[1747443969501,8.0,2494.1,2493.4,6.02]
[1747443969712,4.01042711,2493.5,2493.4,6.02]
[1747443970965,8.0,2493.6,2493.4,6.02]
[1747443971184,4.01090967,2493.2,2493.1,6.02]
[1747443972819,0.8276,2493.6,2493.1,10.03099307]
[1747443973139,9.131,2493.7,2493.2,0.04010897]
[1747443973426,9.13,2494.3,2493.7,6.02]
[1747443973646,4.00857839,2494.7,2494.1,4.00946233]
[1747443973798,4.00844735,2494.8,2494.2,4.00919194]
[1747443973979,4.00850977,2494.7,2494.3,15.168]
[1747443974185,4.00861728,2494.7,2494.3,15.168]
[1747443974622,12.00861728,2494.7,2494.3,15.168]
[1747443974786,4.83567157,2495.0,2494.3,15.168]
[1747443975116,4.00835318,2494.8,2494.3,15.168]
[1747443975323,4.00869298,2494.6,2494.3,15.168]
[1747443976230,4.00898011,2494.4,2494.3,6.02]
[1747443976429,9.118,2494.8,2494.3,15.166]
[1747443976628,4.0085084,2494.7,2494.3,15.166]
[1747443976817,13.1263406,2494.8,2494.4,6.02]
[1747443977018,9.118,2494.8,2494.4,6.02]
[1747443977696,4.00860437,2494.7,2494.4,6.02]
[1747443979636,4.0086587,2494.6,2494.5,6.02]
[1747443979860,8.0,2494.6,2494.5,6.02]
[1747443980003,12.0086587,2494.6,2494.5,6.02]
[1747443980707,4.0086587,2494.6,2494.5,6.02]
[1747443981814,4.0086587,2494.6,2493.9,18.1196]
[1747443981815,12.01123144,2493.0,2492.9,4.8031909]
[1747443982011,4.0154192,2490.4,2490.3,0.2088642]
[1747443982217,14.67843152,2490.4,2490.3,0.2088642]
[1747443982427,25.26698338,2490.4,2490.3,0.2088642]
[1747443982605,29.26321302,2490.4,2490.3,0.2088642]
[1747443982804,29.26321302,2490.4,2489.5,6.64889031]
[1747443982805,4.01650535,2489.8,2489.5,6.64889031]
[1747443983029,3.92022519,2489.7,2489.5,6.64889031]
[1747443983342,2.23111961,2489.7,2489.2,6.64889031]
[1747443983526,9.776,2489.8,2489.3,9.64]
[1747443983733,9.776,2489.8,2489.2,7.39509934]
[1747443983734,4.01719358,2489.3,2489.2,6.64889031]
[1747443983936,4.01708319,2489.4,2489.2,6.64889031]
[1747443984337,4.01719358,2489.3,2489.2,6.64889031]
[1747443984539,21.77319358,2489.3,2489.2,6.64889031]
[1747443985149,12.01719358,2489.3,2489.2,6.64889031]
[1747443985313,12.56719358,2489.3,2489.2,6.64889031]
[1747443985518,22.00319358,2489.3,2489.2,6.64889031]
[1747443986238,22.55319358,2489.3,2489.2,6.64889031]
[1747443986849,21.99219358,2489.3,2489.2,6.64889031]
[1747443987469,17.975,2489.3,2489.2,6.64889031]
[1747443987654,21.99219358,2489.3,2489.2,6.64889031]
[1747443988055,8.0,2489.2,2488.6,17.323]
[1747443988262,4.01816209,2488.7,2488.6,17.323]
[1747443988569,10.002,2488.7,2488.4,9.962]
[1747443989168,8.0,2489.8,2488.7,4.01814471]
[1747443989354,4.016079,2490.0,2489.1,4.01746067]
[1747443989567,10.009,2489.9,2489.2,9.962]
[1747443989863,4.01795312,2488.9,2488.4,2.15668712]
[1747443990028,10.016,2488.9,2488.4,0.7586]
[1747443990230,14.03384986,2488.9,2488.4,0.7586]
[1747443990439,8.0,2488.8,2488.0,0.7586]
[1747443990741,4.01874114,2488.4,2488.1,9.962]
[1747443991285,4.0184612,2488.6,2487.8,21.35059787]
[1747443991286,9.995,2488.6,2487.8,21.35059787]
[1747443991432,4.01813122,2488.8,2487.8,21.35059787]
[1747443991433,0.30692046,2488.9,2487.8,17.331]
[1747443991766,8.0,2488.7,2488.2,4.01882915]
[1747443992364,4.01737328,2489.2,2488.6,4.01820116]
[1747443992570,4.01704115,2489.4,2488.7,9.965]
[1747443992768,0.66411258,2490.2,2489.2,4.01733169]
[1747443993073,4.01664443,2489.7,2489.3,9.965]
[1747443993274,4.01671714,2489.6,2489.1,0.8275]
[1747443993488,9.989,2490.1,2489.2,9.965]
[1747443993786,4.01700569,2489.5,2489.2,9.965]
[1747443994068,9.989,2490.1,2489.2,9.965]
[1747443994267,4.0169276,2489.5,2489.2,9.965]
[1747443994472,0.29399655,2490.1,2489.2,9.965]
[1747443994668,9.964,2490.0,2489.2,11.04425]
[1747443995177,8.0,2489.7,2489.2,15.06159648]
[1747443995376,12.01639413,2489.8,2489.2,9.965]
[1747443995540,4.01646678,2489.8,2489.1,9.967]
[1747443995742,4.01699468,2489.5,2489.1,9.967]
[1747443995973,4.01735497,2489.2,2489.1,9.967]
[1747443996139,4.01719695,2489.3,2489.0,9.967]
[1747443996348,4.01751124,2489.2,2489.0,9.967]
[1747443996574,8.0,2489.4,2489.0,9.967]
[1747443996882,9.927,2489.5,2489.0,12.6974]
[1747443997181,13.9413232,2489.9,2489.3,4.01710726]
[1747443997381,8.0,2489.8,2489.2,4.01735497]
[1747443997584,9.924,2489.9,2489.1,6.02]
[1747443997786,34.38263047,2490.8,2489.6,4.0165811]
[1747443997787,4.01528552,2490.5,2489.6,4.0165811]
[1747443997985,13.93343252,2490.4,2489.7,9.968]
[1747443998145,8.0,2490.2,2489.8,9.968]
[1747443998350,4.01625554,2489.9,2489.3,6.02]
[1747443998569,4.01638311,2489.9,2489.4,15.988]
[1747443999080,4.01687085,2489.5,2489.4,15.988]
[1747443999288,8.0,2489.8,2489.4,15.988]
[1747443999476,9.895,2489.8,2489.4,20.00503192]
[1747443999781,8.0,2490.0,2489.5,4.01677383]
[1747443999988,4.01622555,2489.9,2489.4,15.988]
[1747444000286,4.01648803,2489.8,2489.4,15.988]
[1747444000489,13.91001553,2490.1,2489.4,20.00502769]
[1747444000669,4.01640071,2489.8,2489.4,15.988]
[1747444000850,4.01640071,2489.8,2489.4,9.968]
[1747444001184,4.01606425,2490.0,2489.4,9.968]
[1747444001394,9.894,2490.1,2489.4,9.968]
[1747444001592,9.894,2490.1,2489.5,9.969]
[1747444001593,4.01650856,2489.8,2489.5,9.969]
[1747444001989,4.0163067,2489.9,2489.5,9.969]
[1747444002299,9.859,2490.0,2489.3,6.02]
[1747444002462,8.30072018,2490.4,2489.4,9.969]
[1747444002668,4.01632115,2489.9,2489.5,6.02]
[1747444002979,4.01623755,2489.9,2489.6,6.02]
[1747444003283,4.01654817,2489.7,2489.6,6.02]
[1747444003483,4.01654817,2489.7,2489.6,15.989]
[1747444003702,4.01606365,2490.1,2489.6,6.02]
[1747444003868,4.015976,2490.1,2489.6,10.03661977]
[1747444004197,13.84401856,2490.7,2489.8,0.8275]
[1747444004395,9.829,2490.7,2489.9,23.363]
[1747444004606,4.01568167,2490.3,2490.0,9.969]
[1747444004764,4.01570971,2490.3,2490.0,9.969]
[1747444005106,4.01563008,2490.3,2490.0,9.969]
[1747444005288,4.01544084,2490.4,2490.0,9.969]
[1747444005491,9.811,2490.4,2490.0,9.969]
[1747444005807,4.01580993,2490.2,2490.0,9.969]
[1747444006093,4.01580993,2490.2,2490.1,6.02]
[1747444006995,4.01580993,2490.2,2490.1,4.67541406]
[1747444009508,4.0157417,2490.2,2490.1,4.67541406]
[1747444010608,13.74765493,2490.3,2490.1,4.67541406]
[1747444010900,4.0157417,2490.2,2490.1,4.67541406]
[1747444011806,4.38351754,2490.2,2490.1,4.67541406]
[1747444013303,0.36777584,2490.2,2490.1,4.67541406]
[1747444013664,0.36777584,2490.2,2490.1,5.44141406]
[1747444014299,0.36777584,2490.2,2490.1,9.11825407]
[1747444014463,0.36777584,2490.4,2490.1,9.45731703]
[1747444014664,0.36777584,2490.4,2490.1,5.44141406]
[1747444015398,33.7735684,2490.8,2490.1,5.44141406]
[1747444015607,4.01543036,2490.4,2490.2,4.67541406]
[1747444015806,4.01531108,2490.5,2490.2,4.67541406]
[1747444016100,9.619,2490.7,2490.3,8.69090609]
[1747444016299,6.41977733,2491.5,2490.3,5.62110467]
[1747444016499,6.41977733,2491.5,2490.5,4.01515313]
[1747444016500,4.01452601,2491.0,2490.5,4.01515313]
[1747444016681,4.01452601,2491.0,2490.6,14.34341406]
[1747444017192,4.01452601,2491.0,2490.7,4.67541406]
[1747444017517,4.01453069,2491.0,2490.8,0.7691]
[1747444017804,4.0143295,2491.1,2490.8,0.7691]
[1747444018002,13.61618093,2491.2,2490.8,0.7691]
[1747444018184,4.01436472,2491.1,2490.8,0.7691]
[1747444018387,9.583,2491.3,2490.9,4.67541406]
[1747444018605,4.01445202,2491.0,2490.9,4.67541406]
[1747444019098,4.38208731,2491.0,2490.9,4.67541406]
[1747444019503,0.36763529,2491.0,2490.9,4.67541406]
[1747444019867,4.38208731,2491.0,2490.9,4.67541406]
[1747444020088,4.01445202,2491.0,2490.9,4.67541406]